Cogmind - Beta 15 @@@ ROGUE MODE // 2025.05.30 @ 10:52:05 Player: BVrutally Odd Result: Destroyed by H-66 Slayer with Heavy Assault Rifle Performance ------------- Evolutions (4) 2000 Regions Visited (8) 1600 Robots Destroyed (93) 465 Value Destroyed (2765) 2765 Prototype IDs (21) 420 Alien Tech Used (0) 0 Bonus (1150) 1150 TOTAL SCORE: 8400 Bonus ------- Follower Combat Kills 50 Registered with UFD 300 Met Optimus in HQ 500 Met Imprinter 300 Cogmind --------- Core Integrity 0/850 Matter 265/300 Energy 310/310 System Corruption 17% Temperature Warm (112) Movement Walking (125) Location -5/Proximity Caves Parts ------- > --- POWER (2) -------- Reinforced Fission Core > --- PROPULSION (4) --- Flexi-carbon Leg Cargo Legs > --- UTILITY (7+2) ---- Hacking Suite Makeshift Hacking Suite Improved System Shield > --- WEAPON (2) ------- Heavy Plasma Cannon > --- INVENTORY (5) ---- Bomb Factory No. 2 Heavy Ion Cannon Heavy Flak Cannon CPS Tube (2) Peak State ------------ > --- POWER ------------ Light Angular Momentum Engine Reinforced Fission Core > --- PROPULSION ------- Flexi-carbon Leg Flexi-carbon Leg Cargo Legs > --- UTILITY ---------- Advanced Heat Sink Huge Storage Unit Phase Shifter Hacking Suite Makeshift Hacking Suite Improved System Shield Mapping Drone Bay > --- WEAPON ----------- Proton Cannon Gauss Rifle > --- INVENTORY -------- Deep Structural Scanner Precision Matter Filter Improved Medium Armor Plating Improved Shield Generator Advanced Force Field Mobile Refinery Mk. CCLXVII Bomb Factory No. 2 Heavy Ion Cannon Heavy Plasma Cannon Heavy Flak Cannon CPS Tube CPS Tube [Rating: 81] Favorites ----------- Power Nuclear Core Engine Ion Engine Power Core Nuclear Core Propulsion Light Treads Treads Light Treads Leg Flexi-carbon Leg Wheel Armored Huge Wheel Utility Huge Storage Unit Device Advanced Sensor Array Storage Huge Storage Unit Hackware Improved System Shield Protection Layered Medium Armor Plating Weapon Light EM Pulse Cannon Energy Gun Small Laser Energy Cannon Light EM Pulse Cannon Ballistic Gun Assault Rifle Ballistic Cannon Heavy Flak Cannon Launcher Improved Grenade Launcher Slashing Weapon Mining Claw Build | -11 -10 -10 -8 -6 -6 -6 -6 -5 ------- Run | Yrd Mat Sub Scr Fac Low Low Zio Pro Slots Evolved 8 | . . . . 8 . . . . Power 1 | . . . . 1 . . . . Propulsion 2 | . . . . 2 . . . . Utility 5 | . . . . 5 . . . . Weapon . | . . . . . . . . . Parts Attached 85 | 8 12 17 8 8 10 3 3 16 Power 11 | 2 . 2 2 1 1 . 1 2 Engine 8 | 2 . 2 1 1 . . 1 1 Core 3 | . . . 1 . 1 . . 1 Reactor . | . . . . . . . . . Propulsion 20 | 2 3 5 1 1 1 3 . 4 Treads 16 | 2 3 5 . 1 1 3 . 1 Leg 3 | . . . . . . . . 3 Wheel 1 | . . . 1 . . . . . Hover . | . . . . . . . . . Flight . | . . . . . . . . . Utility 28 | 2 3 1 3 4 4 . 2 9 Device 16 | 1 1 1 2 3 2 . 2 4 Storage 3 | 1 2 . . . . . . . Processor . | . . . . . . . . . Hackware 3 | . . . . . . . . 3 Protection 6 | . . . 1 1 2 . . 2 Artifact . | . . . . . . . . . Weapon 26 | 2 6 9 2 2 4 . . 1 Energy Gun 2 | 1 . 1 . . . . . . Energy Cannon 8 | . . 5 . 2 1 . . . Ballistic Gun 9 | 1 4 3 . . . . . 1 Ballistic Cannon 2 | . . . 2 . . . . . Launcher 3 | . 1 . . . 2 . . . Special Weapon . | . . . . . . . . . Impact Weapon . | . . . . . . . . . Slashing Weapon 2 | . 1 . . . 1 . . . Piercing Weapon . | . . . . . . . . . Special Melee Weapon . | . . . . . . . . . Unidentified Prototypes 4 | . . . . 1 1 . 2 . Corrupted Parts 2 | . . 1 . . . . . 1 System Corruption 9 | . . 2 . . . . . 7 Parts Lost 38 | . . 5 1 . 1 5 . 26 Power 5 | . . 1 . . 1 . . 3 Propulsion 11 | . . 2 . . . 2 . 7 Utility 14 | . . 2 . . . 1 . 11 Weapon 8 | . . . 1 . . 2 . 5 Highest Loss Streak 15 | . . 2 1 . 1 3 . 15 To Critical Strikes . | . . . . . . . . . Average Backups 19 | 3 14 22 22 19 22 20 19 13 Power . | . 1 1 1 . . . . . Propulsion 7 | 2 7 10 10 8 8 5 3 . Utility 3 | . . . 2 3 4 6 7 6 Weapon 7 | . 5 9 8 5 7 6 7 3 Tool/Special . | . . . . . . . . . Unused Backups 14 | . 3 4 3 . . . 1 3 Power . | . . . . . . . . . Propulsion 5 | . 3 . 2 . . . . . Utility 2 | . . . 1 . . . 1 . Weapon 5 | . . 4 . . . . . 1 Tool/Special 2 | . . . . . . . . 2 Average Slot Usage (%) 90 | . 99 99 82 89 92 86 88 72 Engine 7 | . 14 13 8 5 . . 3 4 Core 3 | . . . 2 6 12 6 6 4 Treads 20 | . 28 28 14 12 13 14 26 8 Wheel 2 | . . . 6 6 6 5 . . Device 16 | . 13 13 4 23 26 26 26 13 Storage 10 | . 14 14 13 6 6 6 6 4 Protection 5 | . . . 2 12 12 12 12 5 Energy Cannon 11 | . . 16 26 2 5 2 4 3 Ballistic Gun 5 | . 24 6 . . . . . 2 Ballistic Cannon 1 | . . . . 10 . 10 . 1 Slashing Weapon 1 | . 1 4 . . . . . . Peak Build Rating 81 | 7 13 16 32 56 68 61 62 81 Average Rating 31 | 5 8 13 17 52 55 58 56 62 On Entrance 33 | . 7 13 16 32 55 55 59 62 Naked Turns . | . . . . . . . . . Heaviest Build 149 | 14 93 103 111 135 144 131 132 149 Greatest Support 95 | 40 40 40 40 28 28 68 88 95 Greatest Overweight (x) 5 | 1 2 2 3 4 5 4 1 1 Average Overweight (x) 2 | . 1 2 2 4 4 3 1 . Largest Inventory Capacity 25 | 8 25 25 25 25 25 25 25 25 Average Capacity 24 | 7 22 25 24 25 25 25 25 21 Most Carried 25 | 5 25 25 25 24 25 23 25 25 Average Carried 20 | 3 14 23 23 20 23 21 21 14 Final Capacity 25 | 8 25 25 25 25 25 25 25 5 Final Carried 25 | 5 25 25 24 24 23 19 25 5 Class Distribution -------------------- 85% | Mutant 11% | Derelict-Mutant Dominant Class ---------------- Mutant | -10/Materials Mutant | -10/Subcaves Mutant | -8/Scraptown Derelict-Mutant | -6/Factory Derelict-Mutant | -6/Lower Caves Mutant | -6/Lower Caves Mutant | -6/Zion Scavenger-Mutant | -5/Proximity Caves Resources | -11 -10 -10 -8 -6 -6 -6 -6 -5 ----------- Run | Yrd Mat Sub Scr Fac Low Low Zio Pro Matter Collected 3481 | 316 534 617 272 370 502 212 91 567 Remotely 1065 | . . . . 369 381 212 91 12 Salvage Created 3470 | 177 935 751 88 557 397 169 . 396 Parts 177 | 12 68 47 3 16 15 2 . 14 Haulers Intercepted 4 | . 2 . . 1 1 . . . Recyclers Shooed 6 | . 6 . . . . . . . Parts Field Recycled . | . . . . . . . . . Retrieved Matter . | . . . . . . . . . Parts Self-Destructed 30 | . . 16 . . 3 1 . 10 Prevented 6 | . . 1 . . 4 . . 1 Kills | -11 -10 -10 -8 -6 -6 -6 -6 -5 ------- Run | Yrd Mat Sub Scr Fac Low Low Zio Pro Combat Hostiles Destroyed 67 | . 18 16 2 2 13 4 . 12 Melee 2 | . . . . . . . . 2 Guns 22 | . 12 9 . . . . . 1 Cannons 17 | . . 7 2 2 1 . . 5 AOE 24 | . 6 . . . 11 4 . 3 Classes Destroyed 17 | 3 6 2 2 . 1 . . 3 Worker 4 | 1 1 . . 2 . . . . Builder 2 | . 2 . . . . . . . Tunneler 4 | 3 1 . . . . . . . Hauler 4 | . 2 . . 1 1 . . . Recycler 7 | 1 3 . . 3 . . . . Operator 2 | . 2 . . . . . . . Drone 2 | . . . . . . . . 2 Watcher 3 | . 2 . . 1 . . . . Swarmer 16 | . 5 2 . . 4 4 . 1 Grunt 23 | . 13 1 . 1 5 . . 3 Duelist 2 | . . . . . . . . 2 Protector 1 | . . . . . . . . 1 Sentry 3 | . . 1 . 1 . . . 1 Hunter 6 | . . . . . 4 . . 2 Subdweller 12 | . . 12 . . . . . . Federalist 1 | . . . 1 . . . . . Scrapper 1 | . . . 1 . . . . . Decomposer 2 | . . . . . 2 . . . Packrat 2 | . . . . . . 2 . . Best Kill Streak 9 | 3 9 2 2 2 6 4 . 7 Combat Bots Only 7 | . 5 2 2 1 5 4 . 7 Max Kills in Single Turn 2 | 1 2 1 1 1 2 2 . 1 Gunslinging 1 | . 1 . . . . . . . Exploded 2 | . 2 . . . 2 2 . 1 Melee 1 | . . . . . . . . 1 Uniques/NPCs Destroyed . | . . . . . . . . . Combat | -11 -10 -10 -8 -6 -6 -6 -6 -5 -------- Run | Yrd Mat Sub Scr Fac Low Low Zio Pro Hostile Shots Fired 560 | . 62 90 20 5 83 17 . 283 Missed 148 | . 28 30 6 2 14 4 . 64 Hits 412 | . 34 60 14 3 69 13 . 219 Melee 15 | . . . 2 . 1 . . 12 Projectile 397 | . 34 60 12 3 68 13 . 207 Critical Strikes 16 | . . 2 . . 1 . . 13 Damage Taken 7126 | . 376 1083 160 44 924 497 . 4042 Core 1083 | . 58 160 13 . 115 91 . 646 Absorbed by Shields 662 | . 27 63 . 12 264 16 . 280 Ignored by Resistances 52 | . . . . . . . . 52 Core Remaining (%) 53 | 100 . . 7 . . . . . Volleys Fired 310 | 12 70 79 4 28 44 19 1 53 Largest 2 | 2 2 2 2 2 2 2 1 2 Hottest 160 | 60 40 160 88 125 125 88 35 135 Shots Fired 494 | 24 112 148 8 45 56 23 1 77 Gun 235 | 24 98 98 . . . . . 15 Cannon 217 | . . 50 8 45 39 18 1 56 Launcher 42 | . 14 . . . 17 5 . 6 Special . | . . . . . . . . . Kinetic 291 | 12 98 86 8 30 4 8 . 45 Thermal 143 | 12 . 54 . 15 28 10 1 23 Explosive 42 | . 14 . . . 17 5 . 6 Electromagnetic 18 | . . 8 . . 7 . . 3 Robot Hit Streak 18 | 3 10 18 8 9 11 7 . 9 Robot Miss Streak 8 | 3 4 4 3 8 3 3 . 7 Penetration Max . | . . . . . . . . . Secondary Targets 3 | . 2 1 . . . . . . Max Gunslinging Chain 1 | . 1 1 . . . . . . Shots Hit Robots 324 | 10 65 109 7 34 33 8 . 58 Core Hits 234 | 6 44 27 8 35 37 17 . 60 Critical Kills 1 | . . . . . . . . 1 Critical Parts Destroyed . | . . . . . . . . . Critical Strikes 3 | . . 1 . . . . . 2 Meltdown 1 | . . . . . . . . 1 Destroy 1 | . . 1 . . . . . . Sever 1 | . . . . . . . . 1 Melee Attacks 22 | . 3 12 . . . . . 7 Impact . | . . . . . . . . . Slashing 22 | . 3 12 . . . . . 7 Piercing . | . . . . . . . . . Sneak Attacks 3 | . 3 . . . . . . . Combat Hostiles . | . . . . . . . . . Follow-up Attacks . | . . . . . . . . . Damage Inflicted 9455 | 139 1453 2076 162 909 2330 510 . 1876 Guns 2328 | 139 794 1146 . . . . . 249 Cannons 4208 | . . 930 162 909 770 202 . 1235 Explosions 2552 | . 496 . . . 1560 308 . 188 Melee 367 | . 163 . . . . . . 204 Ramming . | . . . . . . . . . Kinetic 3905 | 72 794 989 162 556 99 202 . 1031 Thermal 2284 | 67 . 929 . 353 534 . . 401 Explosive 2552 | . 496 . . . 1560 308 . 188 Electromagnetic 347 | . . 158 . . 137 . . 52 Impact . | . . . . . . . . . Slashing 367 | . 163 . . . . . . 204 Piercing . | . . . . . . . . . Highest Corruption 17 | . . 2 . . . 8 8 17 Average Corruption 10 | . . 2 . . . 8 8 13 Corruption Purged . | . . . . . . . . . Corruption Blocked . | . . . . . . . . . Effects 42 | . . 4 . . . 5 5 28 Message Errors 13 | . . 1 . . . 2 . 10 Matter Fused 6 | . . 1 . . . 1 2 2 Heat Flow Errors 6 | . . . . . . 2 . 4 Energy Discharges 2 | . . . . . . . . 2 Parts Rejected 1 | . . . . . . . . 1 Parts Fused 1 | . . . . . . . 1 . Data Loss (minor) 9 | . . 2 . . . . 1 6 Data Loss (major) 1 | . . . . . . . . 1 Misfires 1 | . . . . . . . . 1 Alerts 1 | . . . . . . . 1 . Weapon Failures 1 | . . . . . . . . 1 Overload Shots 1 | . . . . . . . . 1 Overflow Damage 154 | . 52 . . 4 50 25 . 23 Projectiles 61 | . . . . 4 16 18 . 23 Explosions 41 | . . . . . 34 7 . . Melee 52 | . 52 . . . . . . . Knockbacks 45 | . . . 3 10 . 5 . 27 Impact . | . . . . . . . . . Kinetic 45 | . . . 3 10 . 5 . 27 Secondary . | . . . . . . . . . Self-Inflicted Damage 60 | . 29 . . . . 27 . 4 Shots 3 | . 1 . . . . 1 . 1 Rammed . | . . . . . . . . . Targets Rammed . | . . . . . . . . . Kicked . | . . . . . . . . . Crushed . | . . . . . . . . . Highest Temperature 408 | . 2 249 180 226 302 203 10 408 Average Temperature 109 | . 1 79 91 80 110 55 10 171 Received Heat Transfer 1259 | . 132 223 36 21 49 . . 798 Effects 12 | . . 1 . . 2 . . 9 Shutdowns 1 | . . . . . . . . 1 Energy Bleed 2 | . . 1 . . . . . 1 Interference 7 | . . . . . 2 . . 5 Short Circuit 1 | . . . . . . . . 1 Damage (minor) 1 | . . . . . . . . 1 Siege Activations . | . . . . . . . . . Martial Activations . | . . . . . . . . . Shielding Activations . | . . . . . . . . . Robots Disrupted . | . . . . . . . . . Combat Hostiles . | . . . . . . . . . Robots Corrupted 1 | . . . . . 1 . . . Combat Hostiles 1 | . . . . . 1 . . . Parts Fried 1 | . . . . . 1 . . . Impact Corruptions . | . . . . . . . . . Robots Melted 1 | . . . . . . . . 1 Combat Hostiles 1 | . . . . . . . . 1 Parts Melted 8 | . . 1 . . 2 . . 5 Heat Transferred 3217 | 150 . 1236 . 550 850 . . 431 Parts Sabotaged . | . . . . . . . . . Parts Stolen 2 | . . . 1 . 1 . . . Parts Stripped . | . . . . . . . . . Power Chain Reactions . | . . . . . . . . . Alert | -11 -10 -10 -8 -6 -6 -6 -6 -5 ------- Run | Yrd Mat Sub Scr Fac Low Low Zio Pro Maximum Alert Level . | . . . . . . . . . Low Security (%) 100 | 100 100 . . 100 . . . . Level 1 . | . . . . . . . . . Level 2 . | . . . . . . . . . Level 3 . | . . . . . . . . . Level 4 . | . . . . . . . . . Level 5 . | . . . . . . . . . High Security . | . . . . . . . . . Max Security . | . . . . . . . . . Peak Influence 174 | 10 174 . . 45 . . . . Initial . | . . . . . . . . . Average 35 | 1 45 . . 5 . . . . Influence Increases 1430 | 25 551 90 . 124 295 90 . 255 Destroy 0b10 Robot/C 1020 | . 360 80 . 40 260 80 . 200 Destroy 0b10 Robot/NC 145 | 25 65 . . 35 5 . . 15 Destroy Leader 150 | . 78 10 . 2 30 10 . 20 Allied During Kill 5 | . . . . . . . . 5 Successful Hack 22 | . 8 . . 14 . . . . Destroy Structure 28 | . 25 . . 3 . . . . Lose Combat Pursuer 60 | . 15 . . 30 . . . 15 Influence Decreases 1430 | 25 531 79 31 124 206 179 . 255 Entered New Map 58 | . . 10 31 . . 17 . . Time Decay 1247 | 25 531 69 . 124 196 162 . 140 Lost Part 105 | . . . . . 10 . . 95 Lost Ally 20 | . . . . . . . . 20 Squads Dispatched 6 | . 4 . . 1 . . . 1 Investigation 2 | . 2 . . . . . . . Extermination 1 | . . . . 1 . . . . Reinforcement 2 | . 2 . . . . . . . Assault 1 | . . . . . . . . 1 Garrison . | . . . . . . . . . Intercept . | . . . . . . . . . Searches Triggered . | . . . . . . . . . Construction Impeded . | . . . . . . . . . Haulers Reinforced . | . . . . . . . . . Active Scanning Responses . | . . . . . . . . . Cargo Convoy Interrupts . | . . . . . . . . . Stealth | -11 -10 -10 -8 -6 -6 -6 -6 -5 --------- Run | Yrd Mat Sub Scr Fac Low Low Zio Pro Distress Signals 7 | . 3 . . 2 . . . 2 Communications Jammed . | . . . . . . . . . Distress Signals . | . . . . . . . . . Times Spotted 109 | . 34 17 12 6 14 4 . 22 Peak Tracking Total 8 | . 8 2 7 3 5 4 . 6 Tactical Retreats 3 | . 1 . . 1 . . . 1 Traps | -11 -10 -10 -8 -6 -6 -6 -6 -5 ------- Run | Yrd Mat Sub Scr Fac Low Low Zio Pro Traps Triggered 4 | . 4 . . . . . . . Indirectly . | . . . . . . . . . Trap Hack Attempts . | . . . . . . . . . Triggered . | . . . . . . . . . Disarmed . | . . . . . . . . . Reprogrammed . | . . . . . . . . . Reused . | . . . . . . . . . Traps Extracted . | . . . . . . . . . Installed . | . . . . . . . . . Triggered . | . . . . . . . . . Machines | -11 -10 -10 -8 -6 -6 -6 -6 -5 ---------- Run | Yrd Mat Sub Scr Fac Low Low Zio Pro Machines Disabled 2 | . 1 1 . . . . . . Max in Single Turn 1 | . 1 1 . . . . . . Machines Repaired . | . . . . . . . . . Machines Dismantled . | . . . . . . . . . Machines Sabotaged . | . . . . . . . . . Overloaded Fab Kills . | . . . . . . . . . Hacking | -11 -10 -10 -8 -6 -6 -6 -6 -5 --------- Run | Yrd Mat Sub Scr Fac Low Low Zio Pro Machines Accessed 13 | . 3 1 8 1 . . . . Terminals 3 | . 2 . . 1 . . . . Fabricators . | . . . . . . . . . Repair Stations . | . . . . . . . . . Recycling Units 1 | . 1 . . . . . . . Scanalyzers . | . . . . . . . . . Garrison Access . | . . . . . . . . . Total Hacks 68 | . 6 1 60 1 . . . . Successful 64 | . 2 1 60 1 . . . . Failed 4 | . 4 . . . . . . . Catastrophic 1 | . 1 . . . . . . . Database Lockouts . | . . . . . . . . . Manual 2 | . 1 . . . . . 1 . Terminals 4 | . 3 . . 1 . . . . Fabricators . | . . . . . . . . . Repair Stations . | . . . . . . . . . Recycling Units 3 | . 3 . . . . . . . Scanalyzers . | . . . . . . . . . Garrison Access . | . . . . . . . . . Terminal Hacks 63 | . 1 1 60 1 . . . . Record 59 | . . . 59 . . . . . Level Access Points 1 | . 1 . . . . . . . Locate Traps 1 | . . . . 1 . . . . Proto ID Catalog 2 | . . 1 1 . . . . . Fabricator Hacks . | . . . . . . . . . Repair Station Hacks . | . . . . . . . . . Recycling Unit Hacks 1 | . 1 . . . . . . . Retrieve Components 1 | . 1 . . . . . . . Scanalyzer . | . . . . . . . . . Garrison Access Hacks . | . . . . . . . . . Unauthorized Hacks . | . . . . . . . . . Terminals . | . . . . . . . . . Fabricators . | . . . . . . . . . Repair Stations . | . . . . . . . . . Recycling Units . | . . . . . . . . . Scanalyzers . | . . . . . . . . . Garrison Access . | . . . . . . . . . Data Cores Recovered . | . . . . . . . . . Used . | . . . . . . . . . Hacking Detections 2 | . 2 . . . . . . . Full Trace Events . | . . . . . . . . . Feedback Events . | . . . . . . . . . Feedback Blocked . | . . . . . . . . . Robot Schematics Acquired 3 | . . . . . . . 3 . Robots Built . | . . . . . . . . . Authchips . | . . . . . . . . . Time . | . . . . . . . . . Total Robot Build Rating . | . . . . . . . . . Part Schematics Acquired 14 | . . . . . . . 14 . Parts Built . | . . . . . . . . . Authchips . | . . . . . . . . . Time . | . . . . . . . . . Total Part Build Rating . | . . . . . . . . . Parts Repaired . | . . . . . . . . . Time . | . . . . . . . . . Parts Recycled . | . . . . . . . . . Recycled Matter . | . . . . . . . . . Retrieved Matter . | . . . . . . . . . Retrieved Components 10 | . 10 . . . . . . . Parts Scanalyzed . | . . . . . . . . . Part Schematics Acquired . | . . . . . . . . . Parts Damaged . | . . . . . . . . . Bothacking | -11 -10 -10 -8 -6 -6 -6 -6 -5 ------------ Run | Yrd Mat Sub Scr Fac Low Low Zio Pro Used RIF Installer . | . . . . . . . . . Robots Hacked . | . . . . . . . . . Non-combat . | . . . . . . . . . Combat . | . . . . . . . . . Robot Hacks Applied . | . . . . . . . . . Relay Couplers Released . | . . . . . . . . . Fabnet Peak Effective % . | . . . . . . . . . Robots Rewired 1 | . . . . . . . . 1 Allies Hacked . | . . . . . . . . . Hacks Repelled . | . . . . . . . . . Allies | -11 -10 -10 -8 -6 -6 -6 -6 -5 -------- Run | Yrd Mat Sub Scr Fac Low Low Zio Pro Total Allies 1 | . . . . . . . . 1 Largest Group 1 | . . . . . . . . 1 Highest-Rated Group 30 | . . . . . . . . 30 Highest-Rated Ally 30 | . . . . . . . . 30 Total Orders 1 | . . . . . . . . 1 RETURN 1 | . . . . . . . . 1 Ally Attacks 2 | . . . . . . . . 2 Total Damage 74 | . . . . . . . . 74 Kills 1 | . . . . . . . . 1 Allies Corrupted . | . . . . . . . . . Allies Melted 1 | . . . 1 . . . . . Intel | -11 -10 -10 -8 -6 -6 -6 -6 -5 ------- Run | Yrd Mat Sub Scr Fac Low Low Zio Pro Active Infowar (turns) 10150 | 17 1948 1484 . 631 1469 1308 3088 205 Optics 941 | . . 941 . . . . . . Sensors 6586 | . . . . 630 1469 1308 3088 91 Structural 4552 | . . . . 149 569 541 3088 205 Seismic 2508 | 17 1948 543 . . . . . . Robot Analysis Total . | . . . . . . . . . Derelict Logs Recovered 12 | . . 1 5 . 2 2 2 . Drone Launches 3 | . . . . . . . . 3 Drone Recoveries 3 | . . . . . . . . 3 Exploration | -11 -10 -10 -8 -6 -6 -6 -6 -5 ------------- Run | Yrd Mat Sub Scr Fac Low Low Zio Pro Turns Passed 18000 | 224 2599 3496 4288 631 1547 1308 3088 819 Spaces Moved 7097 | 110 660 849 2108 322 746 735 1265 302 Core 122 | 5 . . 93 . . . . 24 Treads 3652 | 105 660 849 684 . . 44 1265 45 Legs 233 | . . . . . . . . 233 Wheels 3090 | . . . 1331 322 746 691 . . Hover . | . . . . . . . . . Flight . | . . . . . . . . . Fastest Speed 50 | 50 160 320 50 160 160 160 242 50 Average Speed 217 | 156 276 320 197 160 160 164 242 177 Slowest Speed 320 | 160 320 320 320 160 175 243 243 242 Overloaded Moves . | . . . . . . . . . Propulsion Burnouts . | . . . . . . . . . Robots Hopped . | . . . . . . . . . Potential Cave-ins 4 | . . . . . . 4 . . Cave-ins Triggered 1 | . . . . . . 1 . . Exploration Rate (%) 56 | 7 84 47 90 11 82 75 84 28 Regions Visited 8 Branch Regions 6 Pre-discovered Areas 7 | . . . 4 . . 1 2 . Known Exits Taken 4 | . . . 1 1 1 . 1 . Unknown Exits Taken 4 | 1 1 1 . . . 1 . . Scrap Searched 23 | . . 2 7 . 3 6 4 1 Spaces Dug 31 | . 5 . . 2 13 10 . 1 Terrain Destroyed 219 | . 47 4 . 3 95 20 . 50 Melee . | . . . . . . . . . Projectile 38 | . . 4 . 3 10 10 . 11 AOE 181 | . 47 . . . 85 10 . 39 Terrain Rammed . | . . . . . . . . . Walls Destroyed . | . . . . . . . . . Machines Disabled . | . . . . . . . . . Actions | -11 -10 -10 -8 -6 -6 -6 -6 -5 --------- Run | Yrd Mat Sub Scr Fac Low Low Zio Pro Total 9177 | 134 1311 1462 2236 400 1045 812 1286 491 Wait 1406 | . 533 474 45 26 219 46 . 63 Move 7088 | 109 659 848 2107 321 745 733 1264 302 Hop . | . . . . . . . . . Pick Up 104 | 5 21 10 38 8 4 2 5 11 Fast Attach 42 | 7 3 1 9 1 . . 6 15 Attach 35 | . . 4 3 8 2 6 1 11 Detach 7 | . . . 2 . 1 . 2 2 Swap 93 | 1 16 25 1 7 25 5 1 12 Drop 56 | . 6 9 27 1 5 . 6 2 Fire 310 | 12 70 79 4 28 44 19 1 53 Melee 22 | . 3 12 . . . . . 7 Ram . | . . . . . . . . . Kick . | . . . . . . . . . Crush . | . . . . . . . . . Escape Stasis 1 | . . . . . . 1 . . Rewire 13 | . . . . . . . . 13 Trap . | . . . . . . . . . Miscellaneous . | . . . . . . . . . Route ------- -11/Scrapyard -10/Materials (discovered 6 exits: *Mat x3 / [*Min x2] / *Sub) -10/Subcaves (discovered 2 exits: Rec / *Scr) -8/Scraptown (discovered 2 exits: *Fac x2) -6/Factory (discovered 4 exits: Fac x2 / *Low / Ext) -6/Lower Caves -6/Lower Caves (discovered 2 exits: *Fac / *Zio) -6/Zion -5/Proximity Caves (discovered 1 exit: Fac) History --------- Turn | Location | Event 5 | -11/Scrapyard | Discovered new exit (range 16) 225 | -11/Scrapyard | Entered Materials 276 | -10/Materials | Identified exit to Materials 313 | -10/Materials | Build established: Mutant 677 | -10/Materials | Discovered new exit (range 12) 2533 | -10/Materials | Discovered new exit (range 16) 2802 | -10/Materials | Discovered new exit (range 8) 2824 | -10/Materials | Entered Subcaves 2825 | -10/Subcaves | Approached by a straggling Scientist 2854 | -10/Subcaves | Ambushed by Subdweller buried in earth 2939 | -10/Subcaves | A swath of the cavern ceiling suddenly collapsed 2991 | -10/Subcaves | Identified exit to Recycling 3019 | -10/Subcaves | Visited 4L-MR0's lab 3050 | -10/Subcaves | Found Cargo Legs 3821 | -10/Subcaves | Shifting Twisted Machinery released Sub. Beam Cannon 4150 | -10/Subcaves | Scientist uncovered a shortcut to Scraptown 5016 | -10/Subcaves | Core integrity fell below 50% 6149 | -10/Subcaves | Core integrity fell below 20% 6320 | -10/Subcaves | Entered Scraptown 6320 | -8/Scraptown | System corruption cleaned by C-Scrubber 6450 | -8/Scraptown | Heard Great Nut preacher, LISTEN AND RECITE! 6712 | -8/Scraptown | Visited Red Mages 6831 | -8/Scraptown | Visited Symbiants 7023 | -8/Scraptown | Visited UFD Registry 7023 | -8/Scraptown | Registered with UFD as "Protocoil" 7090 | -8/Scraptown | Visited Cave Peace 7202 | -8/Scraptown | Visited Awakened 7640 | -8/Scraptown | Visited TADAMA 7695 | -8/Scraptown | Visited SPCMW 7797 | -8/Scraptown | Scanned Subdweller tech in exchange for log data 7808 | -8/Scraptown | Learned location of 1 exit from Factory 7811 | -8/Scraptown | Learned Research stockpile data 7814 | -8/Scraptown | Learned Factory stockpile data 7818 | -8/Scraptown | Learned Factory terminal intel 7821 | -8/Scraptown | Learned Research terminal intel 7859 | -8/Scraptown | Discovered new exit (range 11) 8135 | -8/Scraptown | Guru changed UFD alias to "Shortbomber" 8793 | -8/Scraptown | Visited Abandonware Association 8805 | -8/Scraptown | Learned abandonware demo "OVRCLOCK.EXE" 8811 | -8/Scraptown | Learned abandonware demo "ERRANTS.EXE" 8811 | -8/Scraptown | Learned abandonware demo "REBOOT5.EXE" 8844 | -8/Scraptown | Visited A0-MCA Data Center 8864 | -8/Scraptown | Visited Observation Area 8924 | -8/Scraptown | Visited Science Guys 8970 | -8/Scraptown | Visited DA-N13 Charitable Foundation 8976 | -8/Scraptown | Found DCF Scrap (31 items) 9019 | -8/Scraptown | Visited Cartography Club 9043 | -8/Scraptown | Visited Derelict Rescue Squad 9066 | -8/Scraptown | Visited Scrapoid Research Area 9454 | -8/Scraptown | Visited Shadow of the Wyrm 9831 | -8/Scraptown | Learned 24 Factory zone layouts 9831 | -8/Scraptown | Learned location of Armory (-3) 9831 | -8/Scraptown | Learned 8 Research zone layouts 9831 | -8/Scraptown | Learned 24 Upper Caves zone layouts 9831 | -8/Scraptown | Learned 20 Proximity Caves zone layouts 9831 | -8/Scraptown | Learned 4 Hub_04(d) zone layouts 9831 | -8/Scraptown | Learned 4 Armory zone layouts 9831 | -8/Scraptown | Learned location of 1 exit from Lower Caves 9831 | -8/Scraptown | Learned location of 2 exits from Proximity Caves 9831 | -8/Scraptown | Learned location of 3 exits from Proximity Caves 9831 | -8/Scraptown | Identified exit to Factory 10434 | -8/Scraptown | Met Optimus 10434 | -8/Scraptown | Accepted into 0bPrime 10544 | -8/Scraptown | Civil war broke out across Scraptown 10583 | -8/Scraptown | Found Deep Structural Scanner 10608 | -8/Scraptown | Entered Factory 10608 | -6/Factory | Evolved 8 slots: Power x1, Propulsion x2, Utility x5 10609 | -6/Factory | Identified exit to Factory 10611 | -6/Factory | Identified exit to Extension 10611 | -6/Factory | Identified exit to Lower Caves 10613 | -6/Factory | Loaded intel: 28 terminal locations 10625 | -6/Factory | Lost 9 allies 10921 | -6/Factory | Build established: Derelict-Mutant 11239 | -6/Factory | Entered Lower Caves 11240 | -6/Lower Caves | Identified exit to Lower Caves 12038 | -6/Lower Caves | Entered a destroyed Warlord outpost 12092 | -6/Lower Caves | Learned 8 Factory zone layouts 12524 | -6/Lower Caves | Found Imp. Powered Armor 12786 | -6/Lower Caves | Entered another Lower Caves area 12806 | -6/Lower Caves | Encountered a Warlord checkpoint 12984 | -6/Lower Caves | Discovered exit to Factory (range 15) 13025 | -6/Lower Caves | Build established: Mutant 13180 | -6/Lower Caves | Lost 3 parts (1u2w) 13942 | -6/Lower Caves | Crushed by falling debris 13992 | -6/Lower Caves | Learned Factory terminal intel 14019 | -6/Lower Caves | Discovered new exit (range 13) 14094 | -6/Lower Caves | Entered Zion 14095 | -6/Zion | Identified exit to Proximity Caves 14261 | -6/Zion | System corruption cleaned by Quarantine Array 14883 | -6/Zion | Received a visual enhancement algorithm 14949 | -6/Zion | Found Prototype Device 14949 | -6/Zion | Identified Mobile Refinery Mk. CCLXVII 15608 | -6/Zion | Found Prototype Device 15608 | -6/Zion | Identified Bomb Factory No. 2 16211 | -6/Zion | Turned away by Imprinter 16448 | -6/Zion | Ran a visual enhancement algorithm 17182 | -6/Zion | Entered Proximity Caves 17253 | -5/Proximity Caves | Spotter reported a threat 17278 | -5/Proximity Caves | Attracted the attention of an 0b10 outpost 17309 | -5/Proximity Caves | Spotter reported a threat 17323 | -5/Proximity Caves | Lost 3 parts (3u) 17328 | -5/Proximity Caves | Spotter reported a threat 17360 | -5/Proximity Caves | Destroyed 7 combat bots 17454 | -5/Proximity Caves | Core integrity fell below 50% 17477 | -5/Proximity Caves | Lost 15 parts (2p6n4u3w) 17481 | -5/Proximity Caves | Attached Cargo Legs, gained temporary slots: Utility x2 17510 | -5/Proximity Caves | Core integrity fell below 20% 17530 | -5/Proximity Caves | System corruption reached 10% 17959 | -5/Proximity Caves | Ambushed by research squad 18001 | -5/Proximity Caves | Destroyed by H-66 Slayer with Heavy Assault Rifle Last Messages --------------- 17979_ Penetrated by Slug. 17979_ Slug penetrates Wall. 17981_ Slug penetrates H-66 Slayer. 17981_ Penetrated by Slug. 17981_ Slug penetrates Wall. 17982_ Penetrated by Slug. 17982_ Imp. Medium Armor Plating destroyed. 17984_ Destroyed Antigrav System. 17984_ Slug penetrates Wall. 17984_ Penetrated by Slug. 17987_ System corrupted: Energy discharge (-49). 17987_ Flexi-carbon Leg destroyed. 17987_ Slug penetrates P-70 Sage. 17988_ Penetrated by Slug. 17989_ Wall collapses. 17990_ Dropped Huge Storage Unit. 17992_ Penetrated by Slug. 17994_ Slug penetrates Wall. 17997_ Gauss Rifle destroyed. 18001_ Slug penetrates P-70 Sage. Map ----- +----------------------------------------------------+ | ###?##### #??????????????????????? | | ##### ## ### ###????????????????????? | | # ##### #????????????????????? | | ######## ###?# #????????????????????? | | ######## ### #????????????????????? | | ######## ## ##???????????????????? | | ####### ## #???????????????????? | | #### ## ####???????????????????? | | ## ##??????????????????????? | | ## ## ###??????????????????????? | | ####### ## ##????????????????????????? | | ########## ####?????????????????????????? | | ########### ### ##?#?????????????????????????? | | ########### #?# #####???????####???????????###? | | ########### #######?#?????#### ##?????????## ## | | ## ###?## ###?###?###????# ##????????# # | | # #??### #?#???##?###???# ########### # | | ####### #??#???### ##??## #?# # | | ##??## ##?????## ##??##### #### # | | ###### #?????### #??????## #?# | | ### ### ##?##?### #???????#### #?# | | ### #####??# #####??????# ### | | ### ##???# ## ###???## ## | | ## ##??## ##### ### | | ### ###?# #### | | #?## ### @ ### | | #??## ## ###### ## ## | | ##### #???## ######### # # | | #???# #?##### ### #???# ## | | #???# #?#"""## ##### ##??## ### | | ####### #?# p]! "## ## ##??## ### | | ## ? #?# h|!! ### ###### ## ## | | ### ?### h !! #?###### ##### | | ### ### ####;; #?????# | | ## #?## ##?## ##????# | | #??# ##?## ##???# ### | | #??## ? ##?### ### #???# ##### #?# | | ##??## ##### #?## #???# #???# #?## | | ##??# #??## #???# ##??# #??## | | #??## #???## ##??## ##?# #???## | | #???############????###?### ### ###### | | ####???????????????????????# ## | | ##??????????????????????????# ######### | | ####???????????????????????????###### #??????? | | ????????????????????????????????????#######??????? | | ?????????????????????????????????????????????????? | | ?????????????????????????????????????????????????? | | ?????????????????????????????????????????????????? | | ?????????????????????????????????????????????????? | | ?????????????????????????????????????????????????? | +----------------------------------------------------+ Best States ------------- Heat Dissipation 56 Energy Generation 32 Energy Capacity 440 Matter Stores 300 Matter Capacity 300 Sight Range 21 Robot Scan Range 16 Terrain Scan Density 10 Armor Coverage 775 Resistance: TH 10 Weapon Cycling 15 Phase Shifting 5 Evasion (%) 55 Recoil Reduction 4 Matter Filtering 50 Offensive Hacking 21 Defensive Hacking 12 Item Schematics ----------------- Disruptor Cannon | -6/Zion | Archive Power Amplifier | -6/Zion | Archive Mass Driver | -6/Zion | Archive Phase Shifter | -6/Zion | Archive Imp. Armor Integrity Analyzer | -6/Zion | Archive Dispersion Rifle | -6/Zion | Archive Thermic Laser | -6/Zion | Archive Lrn. Tractor Beam | -6/Zion | Archive EM Shield | -6/Zion | Archive Neutrino Core | -6/Zion | Archive Imp. System Restoration Module | -6/Zion | Archive Imp. Plasma Cutter | -6/Zion | Archive Adv. Signal Interpreter | -6/Zion | Archive Flexi-carbon Leg | -6/Zion | Archive Robot Schematics ------------------ A-02 Transporter | -6/Zion | Archive A-15 Conveyor | -6/Zion | Archive X-77 Beamer | -6/Zion | Archive Fabricated ------------ Nothing Repaired ---------- Nothing Alien Tech Used ----------------- None Achievements -------------- None Challenges ------------ None Game ------ Seed HackingVoltaicSpoofer Manual? 0 Play Time 01:36:26 Cumulative 340.0 hours Start 2025.05.30 @ 05:34:26 End 2025.05.30 @ 10:52:05 Sessions 7 Manual Loads 0 Difficulty Rogue Special Mode None Game No. 164 Rogue 101 Adventurer 16 Explorer 47 Win Type - Total 43 Types 24/5/6/1/0/2/2/1/1/1 Lore% 92 Gallery% 88 Achievement% 83 Wizard Run 0 Options --------- Layout 2 ASCII 0 Keyboard 0 Movement Mouse Keybinds 0 Fullscreen 1 Font 32/Tamsyn Map View 50x44 Zoom Use 0% Tactical HUD 1 Map Filters NONE Filters NONE Steam 1 RUN: ae08b260-8555-48aa-90b5-04b5642f2ce1